fUSD/lending_fUSD_20260605
["ID","MTS","AMOUNT","RATE_DAILY","PERIOD"]
[424159995,1780618255000,-937.34,0.00032358,120]
[424159991,1780618255000,-150.0,0.00032337,30]
[424159992,1780618255000,-168.974852,0.00032346,30]
[424159994,1780618255000,-160.0,0.00032349,2]
[424159990,1780618255000,-150.0,0.00032329,30]
[424159997,1780618255000,-357.0,0.00032362,30]
[424159993,1780618255000,-211.43671141,0.00032346,7]
[424159998,1780618255000,-152.0,0.00032362,30]
[424160001,1780618255000,-3089.0,0.00032362,30]
[424160002,1780618255000,-391.0,0.00032362,30]
[424160000,1780618255000,-581.0,0.00032362,30]
[424159989,1780618255000,-211.43671141,0.00032313,7]
[424160003,1780618255000,-1763.0,0.00032363,30]
[424159999,1780618255000,-2450.0,0.00032362,30]
[424160021,1780618255000,-829.0,0.00032395,2]
[424160012,1780618255000,-246.517908,0.00032376,7]
[424160022,1780618255000,-150.0,0.000324,7]
[424160010,1780618255000,-246.517908,0.00032376,7]
[424160019,1780618255000,-211.43671141,0.0003238,7]
[424160020,1780618255000,-583.0,0.00032395,2]
[424160008,1780618255000,-151.0,0.00032376,7]
[424160007,1780618255000,-151.0,0.00032376,7]
[424160005,1780618255000,-150.0,0.00032367,30]
[424160006,1780618255000,-151.0,0.00032376,7]
[424160004,1780618255000,-514.0,0.00032363,30]
[424160009,1780618255000,-151.0,0.00032376,7]
[424160073,1780618256000,-150.0,0.0003265,30]
[424160076,1780618256000,-211.43671141,0.00032682,7]
[424160077,1780618256000,-219.35009724,0.00032697,10]
[424160081,1780618256000,-150.0,0.00032721,30]
[424160075,1780618256000,-168.974852,0.00032682,30]
[424160079,1780618256000,-168.974852,0.00032716,30]
[424160074,1780618256000,-1254.0,0.00032676,10]
[424160085,1780618256000,-211.43671141,0.0003275,7]
[424160078,1780618256000,-1000.0,0.000327,120]
[424160080,1780618256000,-211.43671141,0.00032716,7]
[424160090,1780618256000,-459.54353933,0.00032795,2]
[424160083,1780618256000,-150.0,0.00032733,7]
[424160082,1780618256000,-150.0,0.00032733,7]
[424160086,1780618256000,-150.0,0.00032762,30]
[424160089,1780618256000,-150.0,0.00032792,30]
[424160097,1780618256000,-168.974852,0.00032851,30]
[424160092,1780618256000,-150.0,0.00032812,30]
[424160091,1780618256000,-320.3648248,0.00032795,2]
[424160087,1780618256000,-211.43671141,0.00032783,7]
[424160071,1780618256000,-168.974852,0.00032649,30]
[424160084,1780618256000,-168.974852,0.0003275,30]
[424160069,1780618256000,-187.78006521,0.00032642,2]
[424160057,1780618256000,-211.43671141,0.00032615,7]
[424160072,1780618256000,-211.43671141,0.00032649,7]
[424160047,1780618256000,-300.0,0.0003257,10]
[424160048,1780618256000,-504.0,0.00032579,7]
[424160049,1780618256000,-150.0,0.00032579,30]
[424160053,1780618256000,-666.0,0.00032584,10]
[424160051,1780618256000,-211.43671141,0.00032582,7]
[424160050,1780618256000,-168.974852,0.00032582,30]
[424160052,1780618256000,-300.0,0.00032584,10]
[424160055,1780618256000,-300.0,0.00032599,10]
[424160054,1780618256000,-150.0,0.00032587,30]
[424160059,1780618256000,-150.0,0.00032622,7]
[424160058,1780618256000,-150.0,0.00032622,7]
[424160060,1780618256000,-162.380719,0.0003264,2]
[424160088,1780618256000,-168.974852,0.00032783,30]
[424160061,1780618256000,-599.60298507,0.00032641,2]
[424160062,1780618256000,-747.80937859,0.00032641,2]
[424160063,1780618256000,-209.40437684,0.00032642,2]
[424160065,1780618256000,-891.61887448,0.00032642,2]
[424160066,1780618256000,-407.02348707,0.00032642,2]
[424160067,1780618256000,-251.11897888,0.00032642,2]
[424160070,1780618256000,-2000.0,0.00032642,7]
[424160064,1780618256000,-335.66323249,0.00032642,2]
[424160068,1780618256000,-500.0,0.00032642,2]
[424160094,1780618256000,-211.43671141,0.00032817,7]
[424160056,1780618256000,-168.974852,0.00032615,30]
[424160093,1780618256000,-168.974852,0.00032817,30]
[424160123,1780618256000,-211.43671141,0.00032985,7]
[424160126,1780618256000,-150.0,0.00033004,30]
[424160125,1780618256000,-558.46,0.00033,7]
[424160124,1780618256000,-258.54877676,0.00033,120]
[424160131,1780618256000,-168.974852,0.00033019,30]
[424160127,1780618256000,-1357.0,0.00033017,2]
[424160130,1780618256000,-525.0,0.00033017,2]
[424160129,1780618256000,-1273.0,0.00033017,2]
[424160134,1780618256000,-933.0,0.00033027,2]
[424160128,1780618256000,-3552.0,0.00033017,2]
[424160133,1780618256000,-1226.0,0.00033027,2]
[424160136,1780618256000,-168.974852,0.00033052,30]
[424160137,1780618256000,-211.43671141,0.00033052,7]
[424160135,1780618256000,-3641.0,0.00033027,2]
[424160139,1780618256000,-150.0,0.00033066,7]
[424160141,1780618256000,-150.0,0.00033075,30]
[424160138,1780618256000,-150.0,0.00033059,30]
[424160140,1780618256000,-150.0,0.00033066,7]
[424160143,1780618256000,-211.43671141,0.00033086,7]
[424160142,1780618256000,-168.974852,0.00033086,30]
[424160096,1780618256000,-150.0,0.00032844,7]
[424160120,1780618256000,-150.0,0.00032955,7]
[424160121,1780618256000,-150.0,0.00032955,7]
[424160132,1780618256000,-211.43671141,0.00033019,7]
[424160122,1780618256000,-168.974852,0.00032985,30]
[424160118,1780618256000,-168.974852,0.00032951,30]
[424160095,1780618256000,-150.0,0.00032844,7]
[424160098,1780618256000,-211.43671141,0.00032851,7]
[424160100,1780618256000,-203.62473361,0.00032876,2]
[424160099,1780618256000,-150.0,0.00032863,30]
[424160101,1780618256000,-151.0,0.00032877,7]
[424160103,1780618256000,-242.915901,0.00032877,7]
[424160102,1780618256000,-151.0,0.00032877,7]
[424160106,1780618256000,-262.65,0.00032877,30]
[424160105,1780618256000,-500.6324604,0.00032877,2]
[424160108,1780618256000,-179.20247452,0.00032882,2]
[424160104,1780618256000,-1000.0,0.00032877,120]
[424160114,1780618256000,-211.43671141,0.00032918,7]
[424160110,1780618256000,-211.43671141,0.00032884,7]
[424160109,1780618256000,-168.974852,0.00032884,30]
[424160111,1780618256000,-274.05,0.000329,120]
[424160116,1780618256000,-150.0,0.00032937,30]
[424160112,1780618256000,-1707.67,0.000329,30]
[424160113,1780618256000,-168.974852,0.00032918,30]
[424160119,1780618256000,-211.43671141,0.00032951,7]
[424160115,1780618256000,-150.0,0.00032934,30]
[424160117,1780618256000,-2941.0,0.00032951,5]
[424160107,1780618256000,-614.22038512,0.00032877,120]
[424160184,1780618257000,-1547.0,0.00033279,7]
[424160172,1780618257000,-168.974852,0.00033254,30]
[424160178,1780618257000,-1078.94400121,0.00033265,2]
[424160195,1780618257000,-153.0,0.00033279,7]
[424160185,1780618257000,-1547.0,0.00033279,7]
[424160181,1780618257000,-1547.0,0.00033279,7]
[424160177,1780618257000,-1135.62494031,0.00033265,2]
[424160183,1780618257000,-1547.0,0.00033279,7]
[424160175,1780618257000,-1147.0177514,0.00033265,2]
[424160176,1780618257000,-1059.09407936,0.00033265,2]
[424160188,1780618257000,-152.0,0.00033279,7]
[424160179,1780618257000,-4025.76854745,0.00033265,2]
[424160189,1780618257000,-152.0,0.00033279,7]
[424160200,1780618257000,-1547.0,0.00033279,7]
[424160190,1780618257000,-153.0,0.00033279,7]
[424160193,1780618257000,-153.0,0.00033279,7]
[424160187,1780618257000,-152.0,0.00033279,7]
[424160194,1780618257000,-153.0,0.00033279,7]
[424160192,1780618257000,-153.0,0.00033279,7]
[424160191,1780618257000,-153.0,0.00033279,7]
[424160196,1780618257000,-166.0,0.00033279,7]
[424160197,1780618257000,-1547.0,0.00033279,7]
[424160198,1780618257000,-1547.0,0.00033279,7]
[424160199,1780618257000,-1547.0,0.00033279,7]
[424160206,1780618257000,-1547.0,0.00033279,7]
[424160203,1780618257000,-1547.0,0.00033279,7]
[424160182,1780618257000,-1547.0,0.00033279,7]
[424160186,1780618257000,-152.0,0.00033279,7]
[424160180,1780618257000,-711.49006164,0.00033265,2]
[424160149,1780618257000,-477.56845309,0.00033123,120]
[424160173,1780618257000,-211.43671141,0.00033254,7]
[424160146,1780618257000,-211.43671141,0.0003312,7]
[424160145,1780618257000,-150.0,0.00033112,30]
[424160144,1780618257000,-1508.2,0.0003311,120]
[424160147,1780618257000,-168.974852,0.0003312,30]
[424160150,1780618257000,-226.0,0.00033123,120]
[424160204,1780618257000,-1547.0,0.00033279,7]
[424160151,1780618257000,-150.0,0.00033146,30]
[424160158,1780618257000,-168.974852,0.00033187,30]
[424160155,1780618257000,-10190.7759494,0.00033165,2]
[424160152,1780618257000,-168.974852,0.00033153,30]
[424160148,1780618257000,-571.96819715,0.00033123,120]
[424160153,1780618257000,-211.43671141,0.00033153,7]
[424160156,1780618257000,-150.0,0.00033177,7]
[424160157,1780618257000,-150.0,0.00033177,7]
[424160160,1780618257000,-217.15233878,0.0003319,2]
[424160159,1780618257000,-211.43671141,0.00033187,7]
[424160170,1780618257000,-211.43671141,0.0003322,7]
[424160161,1780618257000,-348.0827721,0.0003319,2]
[424160171,1780618257000,-4025.76854745,0.0003323,2]
[424160162,1780618257000,-924.60877283,0.0003319,2]
[424160163,1780618257000,-241.37132186,0.0003319,2]
[424160168,1780618257000,-150.0,0.00033217,30]
[424160165,1780618257000,-160.0,0.000332,9]
[424160164,1780618257000,-500.0,0.0003319,2]
[424160169,1780618257000,-168.974852,0.0003322,30]
[424160166,1780618257000,-160.0,0.000332,9]
[424160167,1780618257000,-160.0,0.000332,11]
[424160174,1780618257000,-1090.0848401,0.00033263,2]
[424160201,1780618257000,-1547.0,0.00033279,7]
[424160154,1780618257000,-2087.47,0.00033161,14]
[424160202,1780618257000,-1546.0,0.00033279,7]
[424160234,1780618257000,-275.83916,0.00033289,7]
[424160237,1780618257000,-1541.829306,0.00033289,7]
[424160240,1780618257000,-1541.829306,0.00033289,7]
[424160239,1780618257000,-1541.829306,0.00033289,7]
[424160241,1780618257000,-154.930219,0.00033289,7]
[424160238,1780618257000,-1541.829306,0.00033289,7]
[424160242,1780618257000,-151.0,0.00033289,7]
[424160247,1780618257000,-834.811559,0.00033289,7]
[424160246,1780618257000,-151.0,0.00033289,7]
[424160254,1780618257000,-557.281833,0.00033289,7]
[424160258,1780618257000,-749.673451,0.00033289,7]
[424160248,1780618257000,-834.811559,0.00033289,7]
[424160250,1780618257000,-834.811559,0.00033289,7]
[424160263,1780618257000,-151.0,0.000333,7]
[424160251,1780618257000,-151.0,0.00033289,7]
[424160252,1780618257000,-151.0,0.00033289,7]
[424160253,1780618257000,-557.281833,0.00033289,7]
[424160257,1780618257000,-557.281833,0.00033289,7]
[424160249,1780618257000,-834.811559,0.00033289,7]
[424160255,1780618257000,-151.0,0.00033289,7]
[424160260,1780618257000,-749.673451,0.00033289,7]
[424160259,1780618257000,-749.673451,0.00033289,7]
[424160261,1780618257000,-749.673451,0.00033289,7]
[424160264,1780618257000,-151.0,0.000333,7]
[424160262,1780618257000,-4025.76854745,0.000333,2]
[424160265,1780618257000,-281.590561,0.000333,7]
[424160205,1780618257000,-153.0,0.00033279,7]
[424160235,1780618257000,-275.83916,0.00033289,7]
[424160243,1780618257000,-151.0,0.00033289,7]
[424160256,1780618257000,-557.281833,0.00033289,7]
[424160245,1780618257000,-151.0,0.00033289,7]
[424160208,1780618257000,-150.0,0.00033288,7]
[424160219,1780618257000,-610958.6569564,0.00033289,2]
[424160232,1780618257000,-151.0,0.00033289,7]
[424160210,1780618257000,-150.0,0.00033288,7]
[424160212,1780618257000,-150.00000001,0.00033288,30]
[424160213,1780618257000,-150.0,0.00033288,30]
[424160209,1780618257000,-150.0,0.00033288,7]
[424160214,1780618257000,-150.0,0.00033288,30]
[424160218,1780618257000,-150.0,0.00033288,30]
[424160211,1780618257000,-211.43671141,0.00033288,7]
[424160215,1780618257000,-150.0,0.00033288,30]
[424160217,1780618257000,-168.974852,0.00033288,30]
[424160216,1780618257000,-153.69963451,0.00033288,30]
[424160220,1780618257000,-332606.6086515,0.00033289,2]
[424160207,1780618257000,-152.0,0.00033279,7]
[424160223,1780618257000,-151.0,0.00033289,7]
[424160222,1780618257000,-151.0,0.00033289,7]
[424160236,1780618257000,-275.83916,0.00033289,7]
[424160233,1780618257000,-275.83916,0.00033289,7]
[424160228,1780618257000,-187.729829,0.00033289,7]
[424160224,1780618257000,-151.0,0.00033289,7]
[424160230,1780618257000,-187.729829,0.00033289,7]
[424160244,1780618257000,-151.0,0.00033289,7]
[424160226,1780618257000,-151.0,0.00033289,7]
[424160225,1780618257000,-151.0,0.00033289,7]
[424160231,1780618257000,-187.729829,0.00033289,7]
[424160227,1780618257000,-151.0,0.00033289,7]
[424160221,1780618257000,-151.0,0.00033289,7]
[424160229,1780618257000,-187.729829,0.00033289,7]
[424160280,1780618258000,-2450.0,0.00033362,30]
[424160276,1780618258000,-1254.0,0.00033361,10]
[424160278,1780618258000,-357.0,0.00033362,30]
[424160284,1780618258000,-1763.0,0.00033363,30]
[424160294,1780618258000,-2000.0,0.0003348,2]
[424160292,1780618258000,-911.54,0.00033424,120]
[424160283,1780618258000,-391.0,0.00033362,30]
[424160286,1780618258000,-458.0,0.00033377,30]
[424160287,1780618258000,-684.0,0.00033377,30]
[424160295,1780618258000,-2000.0,0.0003348,2]
[424160281,1780618258000,-581.0,0.00033362,30]
[424160274,1780618258000,-360.0,0.00033324,10]
[424160279,1780618258000,-152.0,0.00033362,30]
[424160275,1780618258000,-504.0,0.00033356,8]
[424160272,1780618258000,-500.0,0.000333,120]
[424160282,1780618258000,-3089.0,0.00033362,30]
[424160271,1780618258000,-3313.0,0.000333,7]
[424160266,1780618258000,-186.521462,0.000333,7]
[424160267,1780618258000,-246.517908,0.000333,7]
[424160268,1780618258000,-246.517908,0.000333,7]
[424160269,1780618258000,-246.517908,0.000333,7]
[424160270,1780618258000,-246.517908,0.000333,7]
[424160291,1780618258000,-1048.27,0.000334,30]
[424160277,1780618258000,-614.0,0.00033362,30]
[424160285,1780618258000,-514.0,0.00033363,30]
[424160273,1780618258000,-500.0,0.000333,120]
[424160288,1780618258000,-299.0,0.00033377,30]
[424160317,1780618258000,-1571.94310198,0.00033781,7]
[424160318,1780618258000,-1969.5,0.00033781,7]
[424160316,1780618258000,-2147.99240056,0.00033781,7]
[424160312,1780618258000,-958.81929743,0.00033738,2]
[424160315,1780618258000,-127387.71498439,0.00033781,7]
[424160314,1780618258000,-4199.64510834,0.00033781,7]
[424160311,1780618258000,-360.96183466,0.00033738,2]
[424160313,1780618258000,-500.0,0.00033738,2]
[424160309,1780618258000,-1109.84457657,0.00033704,4]
[424160310,1780618258000,-225.18697532,0.00033738,2]
[424160302,1780618258000,-488.0,0.0003348,2]
[424160303,1780618258000,-4025.76854745,0.00033496,2]
[424160289,1780618258000,-1560.0,0.00033377,30]
[424160308,1780618258000,-1707.67,0.000337,30]
[424160307,1780618258000,-4025.76854745,0.00033694,2]
[424160300,1780618258000,-952.0,0.0003348,2]
[424160306,1780618258000,-200.52078001,0.00033659,2]
[424160297,1780618258000,-2000.0,0.0003348,2]
[424160305,1780618258000,-4025.76854745,0.00033586,2]
[424160301,1780618258000,-750.0,0.0003348,2]
[424160299,1780618258000,-2000.0,0.0003348,2]
[424160298,1780618258000,-2000.0,0.0003348,2]
[424160296,1780618258000,-2000.0,0.0003348,2]
[424160293,1780618258000,-2000.0,0.0003348,2]
[424160290,1780618258000,-151.0,0.00033377,7]
[424160304,1780618258000,-179.20247452,0.00033534,2]
[424160320,1780618259000,-170.52844466,0.0002058,2]
[424160319,1780618259000,-7482.01194491,0.00012592,2]
[424160321,1780618259000,-500.0,0.00026069,30]
[424160323,1780618259000,-12392.87018064,0.00027397,10]
[424160324,1780618259000,-2168.96197322,0.00027397,10]
[424160326,1780618259000,-3872.3366624,0.00016883,2]
[424160325,1780618259000,-250.0,0.00014,2]
[424160322,1780618259000,-500.0,0.00026069,30]
[424160327,1780618311000,200.0,0.00030137,120]
[424160328,1780618346000,-500.0,0.0001046,2]
[424160329,1780618400000,-228.06533539,0.0001007,2]
[424160330,1780618454000,-500.0,0.0001007,2]
[424160331,1780618507000,-223.13192573,0.0001002,2]
[424160332,1780618560000,-247.87937758,0.00010069,2]
[424160333,1780618614000,-159.64573477,0.00010068,2]
[424160334,1780618667000,-500.0,0.00010068,2]
[424160335,1780618721000,-150.0,0.00010067,2]
[424160336,1780618774000,-500.0,0.00010067,2]
[424160337,1780618779000,1694.26986594,0.00014268,5]
[424160338,1780618828000,-6278.82574516,7.945e-05,2]
[424160340,1780619157000,-300.0,7.941e-05,2]
[424160341,1780619211000,-150.0,7.941e-05,2]
[424160342,1780619228000,-1050.0,7.941e-05,2]
[424160343,1780619278000,-300.0,7.94e-05,2]
[424160344,1780619332000,-150.0,7.94e-05,2]
[424160349,1780619372000,-3486.04428781,7.945e-05,2]
[424160347,1780619372000,-350.0,7.942e-05,2]
[424160348,1780619372000,-907.0,7.942e-05,2]
[424160345,1780619372000,-250.0,7.941e-05,2]
[424160346,1780619372000,-589.67702419,7.941e-05,2]
[424160350,1780619385000,-927.03,7.945e-05,2]
[424160351,1780619402000,-14848.79757395,7.945e-05,2]
[424160353,1780619418000,500.0,0.00030136,120]
[424160352,1780619418000,-3099.93324308,7.945e-05,2]
[424160354,1780619419000,500.0,0.00030136,120]
[424160410,1780619432000,-1325.7262071,7.94e-05,2]
[424160385,1780619432000,-1325.7262071,7.94e-05,2]
[424160388,1780619432000,-1325.7262071,7.94e-05,2]
[424160397,1780619432000,-1325.7262071,7.94e-05,2]
[424160389,1780619432000,-1325.7262071,7.94e-05,2]
[424160402,1780619432000,-1325.7262071,7.94e-05,2]
[424160400,1780619432000,-1325.7262071,7.94e-05,2]
[424160398,1780619432000,-1325.7262071,7.94e-05,2]
[424160390,1780619432000,-1325.7262071,7.94e-05,2]
[424160399,1780619432000,-1325.7262071,7.94e-05,2]
[424160393,1780619432000,-1325.7262071,7.94e-05,2]
[424160391,1780619432000,-1325.7262071,7.94e-05,2]
[424160409,1780619432000,-1325.7262071,7.94e-05,2]
[424160392,1780619432000,-1325.7262071,7.94e-05,2]
[424160394,1780619432000,-1325.7262071,7.94e-05,2]
[424160395,1780619432000,-1325.7262071,7.94e-05,2]
[424160403,1780619432000,-1325.7262071,7.94e-05,2]
[424160407,1780619432000,-1325.7262071,7.94e-05,2]
[424160405,1780619432000,-1325.7262071,7.94e-05,2]
[424160404,1780619432000,-1325.7262071,7.94e-05,2]
[424160415,1780619432000,-1315.5283132,7.94e-05,2]
[424160406,1780619432000,-1325.7262071,7.94e-05,2]
[424160414,1780619432000,-172.91990353,7.94e-05,2]
[424160408,1780619432000,-1325.7262071,7.94e-05,2]
[424160416,1780619432000,-1315.5283132,7.94e-05,2]
[424160382,1780619432000,-1325.7262071,7.94e-05,2]
[424160396,1780619432000,-1325.7262071,7.94e-05,2]
[424160375,1780619432000,-1325.7262071,7.94e-05,2]
[424160386,1780619432000,-1325.7262071,7.94e-05,2]
[424160412,1780619432000,-1325.7262071,7.94e-05,2]
[424160358,1780619432000,-500.0,7.94e-05,2]
[424160359,1780619432000,-373.57273641,7.94e-05,2]
[424160360,1780619432000,-500.0,7.94e-05,2]
[424160362,1780619432000,-500.0,7.94e-05,2]
[424160361,1780619432000,-500.0,7.94e-05,2]
[424160370,1780619432000,-1325.7262071,7.94e-05,2]
[424160371,1780619432000,-1325.7262071,7.94e-05,2]
[424160372,1780619432000,-1325.7262071,7.94e-05,2]
[424160363,1780619432000,-1325.7262071,7.94e-05,2]
[424160373,1780619432000,-1325.7262071,7.94e-05,2]
[424160368,1780619432000,-1325.7262071,7.94e-05,2]
[424160366,1780619432000,-1325.7262071,7.94e-05,2]
[424160369,1780619432000,-1325.7262071,7.94e-05,2]
[424160365,1780619432000,-1325.7262071,7.94e-05,2]
[424160367,1780619432000,-1325.7262071,7.94e-05,2]
[424160374,1780619432000,-1325.7262071,7.94e-05,2]
[424160376,1780619432000,-1325.7262071,7.94e-05,2]
[424160377,1780619432000,-1325.7262071,7.94e-05,2]
[424160378,1780619432000,-1325.7262071,7.94e-05,2]
[424160379,1780619432000,-1325.7262071,7.94e-05,2]
[424160384,1780619432000,-1325.7262071,7.94e-05,2]
[424160380,1780619432000,-1325.7262071,7.94e-05,2]
[424160383,1780619432000,-1325.7262071,7.94e-05,2]
[424160381,1780619432000,-1325.7262071,7.94e-05,2]
[424160387,1780619432000,-1325.7262071,7.94e-05,2]
[424160413,1780619432000,-1325.7262071,7.94e-05,2]
[424160364,1780619432000,-1325.7262071,7.94e-05,2]
[424160429,1780619432000,-1315.5283132,7.94e-05,2]
[424160448,1780619432000,-354.94534881,7.983e-05,2]
[424160444,1780619432000,-1315.5283132,7.94e-05,2]
[424160452,1780619432000,-150.0,8.179e-05,2]
[424160449,1780619432000,-150.0,8.02e-05,2]
[424160451,1780619432000,-4258.137947,8.178e-05,2]
[424160453,1780619432000,-500.0,8.219e-05,2]
[424160454,1780619432000,-500.0,8.219e-05,2]
[424160456,1780619432000,-183.22428816,8.219e-05,2]
[424160455,1780619432000,-500.0,8.219e-05,2]
[424160459,1780619432000,-250.0,8.734e-05,2]
[424160457,1780619432000,-500.0,8.219e-05,2]
[424160460,1780619432000,-193.98753391,8.735e-05,2]
[424160461,1780619432000,-500.0,8.735e-05,2]
[424160462,1780619432000,-150.0,8.735e-05,2]
[424160463,1780619432000,-4000.0,8.74e-05,2]
[424160472,1780619432000,-1000.0,0.00011081,2]
[424160464,1780619432000,-1000.0,8.74e-05,2]
[424160467,1780619432000,-279.1725733,0.00010492,2]
[424160466,1780619432000,-215.73365239,0.00010258,2]
[424160465,1780619432000,-250.0,8.74e-05,2]
[424160468,1780619432000,-200.0,0.00010822,2]
[424160470,1780619432000,-177.41,0.00010914,2]
[424160469,1780619432000,-1852.42,0.00010827,2]
[424160471,1780619432000,-168.36,0.0001101,2]
[424160411,1780619432000,-1325.7262071,7.94e-05,2]
[424160450,1780619432000,-150.0,8.1e-05,2]
[424160447,1780619432000,-528.12680649,7.94e-05,2]
[424160458,1780619432000,-189.0,8.258e-05,2]
[424160445,1780619432000,-1315.5283132,7.94e-05,2]
[424160419,1780619432000,-1315.5283132,7.94e-05,2]
[424160446,1780619432000,-500.0,7.94e-05,2]
[424160418,1780619432000,-1315.5283132,7.94e-05,2]
[424160428,1780619432000,-1315.5283132,7.94e-05,2]
[424160417,1780619432000,-1315.5283132,7.94e-05,2]
[424160422,1780619432000,-1315.5283132,7.94e-05,2]
[424160425,1780619432000,-1315.5283132,7.94e-05,2]
[424160423,1780619432000,-1315.5283132,7.94e-05,2]
[424160426,1780619432000,-1315.5283132,7.94e-05,2]
[424160427,1780619432000,-1315.5283132,7.94e-05,2]
[424160424,1780619432000,-1315.5283132,7.94e-05,2]
[424160420,1780619432000,-1315.5283132,7.94e-05,2]
[424160421,1780619432000,-1315.5283132,7.94e-05,2]
[424160430,1780619432000,-1315.5283132,7.94e-05,2]
[424160442,1780619432000,-1315.5283132,7.94e-05,2]
[424160432,1780619432000,-1315.5283132,7.94e-05,2]
[424160437,1780619432000,-1315.5283132,7.94e-05,2]
[424160439,1780619432000,-1315.5283132,7.94e-05,2]
[424160435,1780619432000,-1315.5283132,7.94e-05,2]
[424160436,1780619432000,-1315.5283132,7.94e-05,2]
[424160434,1780619432000,-1315.5283132,7.94e-05,2]
[424160438,1780619432000,-1315.5283132,7.94e-05,2]
[424160431,1780619432000,-1315.5283132,7.94e-05,2]
[424160441,1780619432000,-1315.5283132,7.94e-05,2]
[424160443,1780619432000,-1315.5283132,7.94e-05,2]
[424160440,1780619432000,-1315.5283132,7.94e-05,2]
[424160433,1780619432000,-1315.5283132,7.94e-05,2]
[424160486,1780619433000,-255.0,0.00012152,2]
[424160498,1780619433000,-2500.0,0.00013699,2]
[424160499,1780619433000,-166.66,0.00013699,2]
[424160494,1780619433000,-500.0,0.00013698,2]
[424160492,1780619433000,-150.0,0.00013357,2]
[424160489,1780619433000,-1650.07,0.00012646,2]
[424160491,1780619433000,-360.0,0.00013306,2]
[424160490,1780619433000,-7361.69332493,0.00012772,2]
[424160493,1780619433000,-500.0,0.00013698,2]
[424160487,1780619433000,-150.0,0.00012338,2]
[424160488,1780619433000,-1650.07,0.00012359,2]
[424160481,1780619433000,-1650.07,0.00011496,2]
[424160484,1780619433000,-1650.07,0.00012071,2]
[424160482,1780619433000,-1650.07,0.00011784,2]
[424160478,1780619433000,-205.52,0.00011118,2]
[424160479,1780619433000,-209.63,0.00011126,2]
[424160480,1780619433000,-294.81,0.00011493,2]
[424160477,1780619433000,-2536.15,0.00011111,2]
[424160476,1780619433000,-7361.69332493,0.00011099,2]
[424160475,1780619433000,-2724.50834389,0.00011099,2]
[424160474,1780619433000,-4637.18498109,0.00011099,2]
[424160473,1780619433000,-150.0,0.00011098,2]
[424160496,1780619433000,-500.0,0.00013698,2]
[424160483,1780619433000,-1266.34,0.00012055,2]
[424160502,1780619433000,-166.66,0.00013836,2]
[424160485,1780619433000,-207.55,0.00012087,2]
[424160500,1780619433000,-6127.6,0.00013699,2]
[424160497,1780619433000,-200.0,0.00013699,2]
[424160523,1780619433000,-55490.50773104,0.00014269,2]
[424160524,1780619433000,-1346.83,0.00014269,2]
[424160522,1780619433000,-18467.2186869,0.00014269,2]
[424160520,1780619433000,-217.8860636,0.00014268,2]
[424160507,1780619433000,-435.255,0.00014169,2]
[424160510,1780619433000,-4000.0,0.00014169,2]
[424160513,1780619433000,-150.39058503,0.00014169,2]
[424160508,1780619433000,-4177.6991,0.00014169,2]
[424160521,1780619433000,-113182.35328327,0.00014269,2]
[424160519,1780619433000,-500.0,0.00014268,2]
[424160518,1780619433000,-500.0,0.00014268,2]
[424160512,1780619433000,-154.56295116,0.00014169,2]
[424160511,1780619433000,-500.0,0.00014169,2]
[424160516,1780619433000,-19446.28,0.00014259,2]
[424160501,1780619433000,-10616.56,0.00013699,2]
[424160495,1780619433000,-500.0,0.00013698,2]
[424160503,1780619433000,-2000.0,0.00013935,2]
[424160505,1780619433000,-15562.3286,0.00014069,2]
[424160504,1780619433000,-166.66,0.00013973,2]
[424160506,1780619433000,-166.66,0.0001411,2]
[424160515,1780619433000,-166.66,0.00014247,2]
[424160517,1780619433000,-19446.28,0.00014259,2]
[424160509,1780619433000,-2500.0,0.00014169,2]
[424160514,1780619433000,-3164.29665868,0.00014169,2]
[424160542,1780619438000,-449.0,0.00014369,2]